Cogmind - Beta 13 @@@ ROGUE MODE // 2024.04.09 @ 15:25:38 Player: Catty Watty Result: Destroyed self with Rocket Launcher Performance ------------- Evolutions (1) 500 Regions Visited (2) 400 Robots Destroyed (18) 90 Value Destroyed (463) 463 Prototype IDs (2) 40 Alien Tech Used (0) 0 Bonus (0) 0 TOTAL SCORE: 1493 Bonus ------- None Cogmind --------- Core Integrity 0/400 Matter 279/300 Energy 339/350 System Corruption 0% Temperature Cool (6) Movement Core (500) Ox9 Location -9/Materials Parts ------- > --- POWER (2) -------- (None) > --- PROPULSION (2) --- (None) > --- UTILITY (3) ------ Large Storage Unit High-capacity Battery Signal Interpreter > --- WEAPON (2) ------- Rocket Launcher > --- INVENTORY (15) --- Medium Storage Unit Large Storage Unit Large Matter Pod (116) High-capacity Matter Pod (0) ECM Suite Weapon Shielding Hardened Light Armor Plating Hardened Light Armor Plating EM Pulse Gun Peak State ------------ > --- POWER ------------ Ion Engine Ion Engine > --- PROPULSION ------- Aluminum Leg Aluminum Leg > --- UTILITY ---------- Large Storage Unit High-capacity Battery Signal Interpreter > --- WEAPON ----------- Improved Medium Laser Heavy Assault Rifle > --- INVENTORY -------- Medium Storage Unit Large Storage Unit Large Matter Pod High-capacity Matter Pod ECM Suite Weapon Shielding Hardened Light Armor Plating Hardened Light Armor Plating EM Pulse Gun Heavy EM Pulse Gun Advanced Beam Cannon Rocket Launcher [Rating: 13] Favorites ----------- Power Ion Engine Engine Ion Engine Propulsion Light Treads Treads Light Treads Leg Aluminum Leg Hover Unit Hover Unit Utility Signal Interpreter Storage Large Storage Unit Processor Signal Interpreter Weapon Beam Cannon Energy Gun Medium Laser Energy Cannon Beam Cannon Ballistic Gun Heavy Assault Rifle Launcher Rocket Launcher Build | -11 -10 -9 ------- Run | Yrd Mat Mat Slots Evolved 2 | . . 2 Power 1 | . . 1 Propulsion . | . . . Utility 1 | . . 1 Weapon . | . . . Parts Attached 21 | 5 6 10 Power 3 | 1 1 1 Engine 3 | 1 1 1 Core . | . . . Reactor . | . . . Propulsion 5 | 2 . 3 Treads 2 | 2 . . Leg 2 | . . 2 Wheel . | . . . Hover 1 | . . 1 Flight . | . . . Utility 4 | . 3 1 Device . | . . . Storage 3 | . 2 1 Processor 1 | . 1 . Hackware . | . . . Protection . | . . . Artifact . | . . . Weapon 9 | 2 2 5 Energy Gun 4 | 2 . 2 Energy Cannon 3 | . 2 1 Ballistic Gun 1 | . . 1 Ballistic Cannon . | . . . Launcher 1 | . . 1 Special Weapon . | . . . Impact Weapon . | . . . Slashing Weapon . | . . . Piercing Weapon . | . . . Special Melee Weapon . | . . . Unidentified Prototypes 2 | . . 2 Parts Lost 10 | . 2 8 Power 3 | . 1 2 Propulsion 3 | . 1 2 Utility . | . . . Weapon 4 | . . 4 Highest Loss Streak 4 | . 2 4 To Critical Strikes . | . . . Average Slot Usage (%) 94 | . 95 93 Engine 16 | . 13 18 Treads 13 | . 25 6 Leg 4 | . . 7 Hover 3 | . . 5 Storage 19 | . 13 22 Processor 11 | . 13 11 Energy Gun 9 | . 19 3 Energy Cannon 8 | . 7 8 Ballistic Gun 5 | . . 8 Naked Turns . | . . . Heaviest Build 40 | 9 30 40 Greatest Support 40 | 40 40 20 Greatest Overweight (x) 9 | . 1 9 Average Overweight (x) . | . . 1 Largest Inventory Capacity 15 | 5 15 15 Average Capacity 14 | 5 13 15 Most Carried 14 | 3 9 14 Average Carried 8 | 1 5 10 Final Capacity 15 | 5 15 15 Final Carried 9 | 2 8 9 Class Distribution -------------------- 100% | Mutant Dominant Class ---------------- Mutant | -10/Materials Mutant | -9/Materials Resources | -11 -10 -9 ----------- Run | Yrd Mat Mat Matter Collected 538 | 215 71 252 Remotely . | . . . Salvage Created 588 | . 109 479 Parts 42 | . 4 38 Haulers Intercepted . | . . . Recyclers Shooed . | . . . Parts Field Recycled . | . . . Retrieved Matter . | . . . Parts Self-Destructed . | . . . Prevented . | . . . Kills | -11 -10 -9 ------- Run | Yrd Mat Mat Combat Hostiles Destroyed 16 | . 4 12 Guns 9 | . 2 7 Cannons 7 | . 2 5 Classes Destroyed 5 | . 2 3 Worker 1 | . . 1 Builder 1 | . . 1 Swarmer 5 | . 2 3 Grunt 8 | . 2 6 Sentry 3 | . . 3 Best Kill Streak 4 | . 2 4 Combat Bots Only 3 | . 2 3 Max Kills in Single Turn 2 | . 1 2 Gunslinging . | . . . Exploded . | . . . Melee . | . . . Uniques/NPCs Destroyed . | . . . Combat | -11 -10 -9 -------- Run | Yrd Mat Mat Hostile Shots Fired 196 | . 64 132 Missed 38 | . 15 23 Damage Taken 1827 | . 490 1337 Core 517 | . 110 407 Absorbed by Shields . | . . . Regen/Repaired (Parts) 93 | . 93 . Core Remaining (%) 78 | 100 56 . Volleys Fired 70 | . 16 54 Largest 2 | . 2 2 Hottest 124 | . 110 124 Shots Fired 116 | . 32 84 Gun 73 | . 16 57 Cannon 42 | . 16 26 Launcher 1 | . . 1 Special . | . . . Kinetic 29 | . . 29 Thermal 82 | . 32 50 Explosive 1 | . . 1 Electromagnetic 4 | . . 4 Robot Hit Streak 7 | . 4 7 Robot Miss Streak 7 | . 4 7 Penetration Max . | . . . Secondary Targets . | . . . Shots Hit Robots 53 | . 14 39 Core Hits 23 | . 5 18 Critical Kills . | . . . Critical Parts Destroyed . | . . . Critical Strikes 2 | . . 2 Burn 2 | . . 2 Melee Attacks . | . . . Impact . | . . . Slashing . | . . . Piercing . | . . . Sneak Attacks . | . . . Combat Hostiles . | . . . Follow-up Attacks . | . . . Damage Inflicted 1207 | . 244 963 Guns 596 | . 86 510 Cannons 415 | . 157 258 Explosions 186 | . . 186 Melee . | . . . Ramming 10 | . 1 9 Kinetic 226 | . . 226 Thermal 757 | . 243 514 Explosive 186 | . . 186 Electromagnetic 28 | . . 28 Impact . | . . . Slashing . | . . . Piercing . | . . . Highest Corruption . | . . . Average Corruption . | . . . Corruption Purged . | . . . Corruption Blocked . | . . . Overload Shots . | . . . Overflow Damage 41 | . . 41 Projectiles . | . . . Explosions 41 | . . 41 Melee . | . . . Knockbacks . | . . . Impact . | . . . Kinetic . | . . . Secondary . | . . . Self-Inflicted Damage 38 | . . 38 Shots 1 | . . 1 Rammed 3 | . 1 2 Targets Rammed 4 | . 1 3 Kicked 1 | . . 1 Crushed . | . . . Highest Temperature 456 | . 456 368 Average Temperature 152 | . 212 122 Received Heat Transfer 498 | . 108 390 Effects 9 | . 5 4 Shutdowns 2 | . 2 . Interference 3 | . . 3 Damage (minor) 2 | . 1 1 Damage (major) 2 | . 2 . Siege Activations . | . . . Robots Corrupted . | . . . Combat Hostiles . | . . . Parts Fried . | . . . Impact Corruptions . | . . . Robots Melted . | . . . Combat Hostiles . | . . . Parts Melted 2 | . 1 1 Heat Transferred 1813 | . 592 1221 Parts Sabotaged . | . . . Parts Stolen . | . . . Parts Stripped . | . . . Power Chain Reactions . | . . . Alert | -11 -10 -9 ------- Run | Yrd Mat Mat Peak Influence 275 | . 170 275 Initial . | . . . Average 64 | . 60 73 Maximum Alert Level 1 | . . 1 Low Security (%) 92 | 100 100 88 Level 1 7 | . . 11 Level 2 . | . . . Level 3 . | . . . Level 4 . | . . . Level 5 . | . . . High Security . | . . . Max Security . | . . . Squads Dispatched 3 | . 1 2 Investigation 3 | . 1 2 Extermination . | . . . Reinforcement . | . . . Assault . | . . . Garrison . | . . . Intercept . | . . . Searches Triggered . | . . . Construction Impeded . | . . . Haulers Reinforced . | . . . Active Scanning Responses . | . . . Cargo Convoy Interrupts . | . . . Stealth | -11 -10 -9 --------- Run | Yrd Mat Mat Distress Signals 3 | . . 3 Communications Jammed . | . . . Distress Signals . | . . . Times Spotted 26 | . 8 18 Peak Tracking Total 7 | . 5 7 Tactical Retreats 3 | . 1 2 Traps | -11 -10 -9 ------- Run | Yrd Mat Mat Traps Triggered 2 | . 2 . Indirectly . | . . . Trap Hack Attempts . | . . . Triggered . | . . . Disarmed . | . . . Reprogrammed 6 | . 6 . Reused 1 | . 1 . Traps Extracted . | . . . Installed . | . . . Triggered 1 | . 1 . Machines | -11 -10 -9 ---------- Run | Yrd Mat Mat Machines Disabled . | . . . Max in Single Turn . | . . . Machines Repaired . | . . . Machines Dismantled . | . . . Machines Sabotaged . | . . . Overloaded Fab Kills . | . . . Hacking | -11 -10 -9 --------- Run | Yrd Mat Mat Machines Accessed 7 | . 2 5 Terminals 4 | . 1 3 Fabricators . | . . . Repair Stations 1 | . 1 . Recycling Units 1 | . . 1 Scanalyzers 1 | . . 1 Garrison Access . | . . . Total Hacks 16 | . 5 11 Successful 10 | . 4 6 Failed 6 | . 1 5 Catastrophic 2 | . . 2 Database Lockouts . | . . . Manual . | . . . Terminals 7 | . 2 5 Fabricators . | . . . Repair Stations 3 | . 3 . Recycling Units 1 | . . 1 Scanalyzers 5 | . . 5 Garrison Access . | . . . Terminal Hacks 3 | . 2 1 Record 1 | . 1 . Locate Traps 1 | . . 1 Reprogram Traps 1 | . 1 . Fabricator Hacks . | . . . Repair Station Hacks 2 | . 2 . Scan Component 1 | . 1 . Repair 1 | . 1 . Recycling Unit Hacks 1 | . . 1 Report Inventory 1 | . . 1 Scanalyzer 4 | . . 4 Insert Component 2 | . . 2 Analyze 2 | . . 2 Garrison Access Hacks . | . . . Unauthorized Hacks . | . . . Terminals . | . . . Fabricators . | . . . Repair Stations . | . . . Recycling Units . | . . . Scanalyzers . | . . . Garrison Access . | . . . Data Cores Recovered . | . . . Used . | . . . Hacking Detections 4 | . 1 3 Full Trace Events 3 | . 1 2 Feedback Events . | . . . Feedback Blocked . | . . . Robot Schematics Acquired . | . . . Robots Built . | . . . Authchips . | . . . Time . | . . . Total Robot Build Rating . | . . . Part Schematics Acquired 2 | . . 2 Parts Built . | . . . Authchips . | . . . Time . | . . . Total Part Build Rating . | . . . Parts Repaired 1 | . 1 . Time 26 | . 26 . Parts Recycled . | . . . Recycled Matter . | . . . Retrieved Matter . | . . . Retrieved Components . | . . . Parts Scanalyzed 2 | . . 2 Part Schematics Acquired 2 | . . 2 Parts Damaged . | . . . Bothacking | -11 -10 -9 ------------ Run | Yrd Mat Mat Used RIF Installer . | . . . Robots Hacked . | . . . Non-combat . | . . . Combat . | . . . Robot Hacks Applied . | . . . Relay Couplers Released . | . . . Fabnet Peak Effective % . | . . . Robots Rewired . | . . . Allies Hacked . | . . . Hacks Repelled . | . . . Allies | -11 -10 -9 -------- Run | Yrd Mat Mat Total Allies . | . . . Largest Group . | . . . Highest-Rated Group . | . . . Highest-Rated Ally . | . . . Total Orders . | . . . Ally Attacks . | . . . Total Damage . | . . . Kills . | . . . Allies Corrupted . | . . . Allies Melted . | . . . Intel | -11 -10 -9 ------- Run | Yrd Mat Mat Robot Analysis Total . | . . . Derelict Logs Recovered . | . . . Drone Launches . | . . . Drone Recoveries . | . . . Exploration | -11 -10 -9 ------------- Run | Yrd Mat Mat Turns Passed 1341 | 78 444 819 Spaces Moved 521 | 34 215 272 Core 10 | 9 . 1 Treads 422 | 25 215 182 Legs 89 | . . 89 Wheels . | . . . Hover . | . . . Flight . | . . . Fastest Speed 50 | 50 160 190 Average Speed 194 | 130 166 225 Slowest Speed 500 | 160 240 500 Overloaded Moves . | . . . Propulsion Burnouts . | . . . Robots Hopped . | . . . Cave-ins Triggered . | . . . Exploration Rate (%) 19 | 4 34 20 Regions Visited 2 Branch Regions . Pre-discovered Areas . | . . . Known Exits Taken 1 | . 1 . Unknown Exits Taken 1 | 1 . . Scrap Searched . | . . . Spaces Dug . | . . . Terrain Destroyed 3 | . . 3 Melee . | . . . Projectile . | . . . AOE 3 | . . 3 Terrain Rammed . | . . . Walls Destroyed . | . . . Machines Disabled . | . . . Actions | -11 -10 -9 --------- Run | Yrd Mat Mat Total 732 | 67 271 394 Wait 85 | 23 21 41 Move 519 | 33 214 272 Hop . | . . . Pick Up 28 | 6 11 11 Fast Attach 1 | 1 . . Attach 20 | 4 6 10 Detach 1 | . 1 . Swap . | . . . Drop 4 | . 1 3 Fire 70 | . 16 54 Melee . | . . . Ram . | . . . Kick 1 | . . 1 Crush 3 | . 1 2 Escape Stasis . | . . . Rewire . | . . . Trap . | . . . Miscellaneous . | . . . Route ------- -11/Scrapyard -10/Materials -9/Materials History --------- Turn | Location | Event 38 | -11/Scrapyard | Discovered new exit (range 15) 79 | -11/Scrapyard | Entered Materials 302 | -10/Materials | Build established: Mutant 422 | -10/Materials | Discovered new exit (range 16) 507 | -10/Materials | Repaired Beam Cannon 521 | -10/Materials | Identified exit to Materials 523 | -10/Materials | Entered another Materials area 523 | -9/Materials | Evolved 2 slots: Power x1, Utility x1 1260 | -9/Materials | Lost 4 parts (2p2w) 1327 | -9/Materials | Core integrity fell below 50% 1334 | -9/Materials | Core integrity fell below 20% 1342 | -9/Materials | Destroyed self with Rocket Launcher Last Messages --------------- R-06 Scavenger collects Sml. Laser. Kicked K-01 Serf. W-16 Scout sends out distress signal. Hvy. EM Pulse Gun destroyed. W-16 Scout suffers critical hit (Burn). W-16 Scout suffers critical hit (Destroy). Aluminum Leg destroyed. Identified Adv. Beam Cannon. Aluminum Leg destroyed. Imp. Medium Laser destroyed. S-10 Pest destroyed. Adv. Beam Cannon severed. K-01 Serf collects debris. W-16 Scout sends out distress signal. S-10 Pest destroyed. K-01 Serf collects debris. Destroyed Imp. Terrain Scanner. Destroyed Seismic Detector. Destroyed Flight Unit. K-01 Serf destroyed. Map ----- +----------------------------------------------------+ | ?????????????????????????????????????????????????? | | ?????????????????????????????????????????????????? | | ?????????????????????????????????????????????????? | | ?????????????????????????????????????????????????? | | ?????????????????????????????????????????????????? | | ?????????????????????????????????????????????????? | | ?????????????????????????????????????????????????? | | ?????????????????????????????????????????????????? | | ?????????????????????????????????????????????????? | | ?????????????????????????????????????????????????? | | ?????????????????????????????????????????????????? | | ?????????????????????????????????????????????????? | | ?????????????????????????????????????????????????? | | ?????????????????????????????????????????????????? | | ?????????????????????????????????????????????????? | | ?????????????????????????????????????????????????? | | ???????????????????##??+?????????????????????????? | | ??????????????????? ?? ????????????????????????? | | ?????????###??????? ?? ????????????????????????? | | ?????????# ######?? ??? ????????????????????????? | | ?????????# "" #?# ???w?#######????????????????? | | ?????????# ""S #?#! ??? ? #????????????????? | | ?????????# "" #?# ??? # #????????????????? | | ???####### #?#+##### #????????????????? | | ???# ==[# ! #?# l%= #????????????????? | | ???#"""=*# = #?# ]@*t #????????????????? | | ???#"Y%[%#+##+##### s #????????????????? | | ???#"""!!+ ^= g #????????????????? | | ???# [=%# ########+#### ## #????????????????? | | ???# !=# #????# ##??? #????????????????? | | ???# # #????# #????? ???????????????? | | ???####### #????# """ #?????? ###??????????????? | | ?????????# #????# """ #??????? #????????????????? | | ???????### ###??# """ #????????#????????????????? | | ?#####?# #??# #?????????????????????????? | | ?# ### " #??#########????????????????????????? | | ?+ "T #?????# #????????????????????????? | | ?# ### #?????# #????????????????????????? | | ?## ##?# #?????# #????????????????????????? | | ### ################ #????????????????????????? | | %= [!!= = [* =! + #????????????????????????? | | ###+##############=#[ #????????????????????????? | | # ] #????????#*#%= #????????????????????????? | | # #????????+ + #????????????????????????? | | # "T" #????????# # #????????????????????????? | | # """ !#????????# ######????????????????????????? | | # !]###??????# #?????????????????????????????? | | ######### ########+##????????????????????????????? | | ##### ! # "" #????????????????????????????? | | + = "# ""S #????????????????????????????? | +----------------------------------------------------+ Best States ------------- Heat Dissipation 28 Energy Generation 15 Energy Capacity 650 Matter Stores 300 Matter Capacity 300 Sight Range 16 Terrain Scan Density 10 Evasion (%) 50 Recoil Reduction 2 Item Schematics ----------------- ECM Suite | -9/Materials | Scanalyzed Lrg. Storage Unit | -9/Materials | Scanalyzed Robot Schematics ------------------ None Fabricated ------------ Nothing Alien Tech Used ----------------- None Achievements -------------- None Challenges ------------ None Game ------ Seed MolecularShieldArchive Manual? 0 Play Time 00:16:38 Cumulative 1.6 hours Start 2024.04.09 @ 15:10:47 End 2024.04.09 @ 15:25:38 Sessions 1 Manual Loads 0 Difficulty Rogue Special Mode None Game No. 5 Rogue 5 Adventurer 0 Explorer 0 Win Type - Total 0 Types 0/0/0/0/0/0/0/0/0 Lore% 1 Gallery% 6 Achievement% 7 Wizard Run 0 Options --------- Layout 1 ASCII 0 Keyboard 0 Movement Mouse Keybinds 0 Fullscreen 1 Font 24/Smallcaps Map View 50x35 Zoom Use 0% Tactical HUD 0 Map Filters NONE Filters NONE Steam 1 RUN: 2b1e8e2b-dc8b-41c5-862b-91aa0e1748bd